bitfinex/quotes_BTCUSD_20250928
["timestamp","ask_amount","ask_price","bid_price","bid_amount"]
[1759076106478,8.87763905,110490.0,110480.0,0.1033149]
[1759076106686,8.20554649,110490.0,110480.0,0.1033149]
[1759076106885,8.87547905,110490.0,110480.0,0.1033149]
[1759076107250,8.58143905,110490.0,110480.0,0.1033149]
[1759076107865,8.56723738,110490.0,110480.0,0.1033149]
[1759076108064,8.56935738,110490.0,110480.0,0.1033149]
[1759076108261,8.56935738,110490.0,110480.0,0.1001349]
[1759076108878,8.56723738,110490.0,110480.0,0.1001349]
[1759076109081,8.86127738,110490.0,110480.0,0.1033149]
[1759076109281,8.56723738,110490.0,110480.0,0.1033149]
[1759076109492,8.56935738,110490.0,110480.0,0.1033149]
[1759076109699,8.57230738,110490.0,110480.0,0.1001349]
[1759076110905,8.58650904,110490.0,110480.0,0.1001349]
[1759076112059,8.58650904,110490.0,110480.0,0.03110618]
[1759076112480,8.88046904,110490.0,110480.0,0.03110618]
[1759076114949,8.96918051,110490.0,110480.0,0.0980149]
[1759076115772,8.88046904,110490.0,110480.0,0.0980149]
[1759076115977,9.43737345,110490.0,110480.0,0.03110618]
[1759076117354,8.68558833,110490.0,110480.0,0.03110618]
[1759076117608,9.43737345,110490.0,110480.0,0.03110618]
[1759076117975,9.42317179,110490.0,110480.0,0.03110618]
[1759076118323,9.21587276,110490.0,110480.0,0.03110618]
[1759076119278,9.04003944,110490.0,110480.0,0.03110618]
[1759076119681,9.05424255,110490.0,110480.0,0.03110618]
[1759076120138,9.08148426,110490.0,110480.0,0.03110618]
[1759076120345,9.08248138,110490.0,110480.0,0.03110618]
[1759076122263,9.17119285,110490.0,110480.0,0.03110618]
[1759076123436,9.08248138,110490.0,110480.0,0.03110618]
[1759076124229,9.08721762,110490.0,110480.0,0.03110618]
[1759076125265,9.51366874,110490.0,110480.0,0.03110618]
[1759076125727,9.54256009,110490.0,110480.0,0.03110618]
[1759076126321,9.24872009,110490.0,110480.0,0.03110618]
[1759076126491,9.26034897,110490.0,110480.0,0.03110618]
[1759076126698,9.34906044,110490.0,110480.0,0.03110618]
[1759076126894,9.72551156,110490.0,110480.0,0.03110618]
[1759076127303,9.74924928,110490.0,110480.0,0.03110618]
[1759076128337,9.73504617,110490.0,110480.0,0.03110618]
[1759076129004,8.60569281,110490.0,110480.0,0.02710618]
[1759076129294,9.73504617,110490.0,110480.0,0.02410618]
[1759076129506,9.73504617,110490.0,110450.0,0.37295609]
[1759076129507,0.55121291,110460.0,110450.0,0.37295609]
[1759076129709,9.09560289,110460.0,110450.0,0.37300218]
[1759076129907,9.04023572,110460.0,110450.0,0.30004609]
[1759076130738,9.06748609,110460.0,110450.0,0.30204609]
[1759076130941,9.06748609,110460.0,110450.0,0.30504609]
[1759076131146,9.08169362,110460.0,110450.0,0.30504609]
[1759076131564,8.78801362,110460.0,110450.0,0.30504609]
[1759076131769,8.32879138,110460.0,110450.0,0.30504609]
[1759076131975,9.08169362,110460.0,110450.0,0.30504609]
[1759076132188,9.08165362,110460.0,110450.0,0.30504609]
[1759076133178,9.17036509,110460.0,110450.0,0.30504609]
[1759076133580,8.78801362,110460.0,110450.0,0.30504609]
[1759076133784,9.08169362,110460.0,110450.0,0.30504609]
[1759076133987,9.08165362,110460.0,110450.0,0.30504609]
[1759076134567,8.78801362,110460.0,110450.0,0.30504609]
[1759076134769,9.08165362,110460.0,110450.0,0.30504609]
[1759076134964,8.78801362,110460.0,110450.0,0.30504609]
[1759076135251,9.08165362,110460.0,110450.0,0.30504609]
[1759076136002,9.17036509,110460.0,110450.0,0.30504609]
[1759076137221,9.08165362,110460.0,110450.0,0.30504609]
[1759076138413,8.78801362,110460.0,110450.0,0.30504609]
[1759076138631,9.08157362,110460.0,110450.0,0.30504609]
[1759076139260,9.08157362,110460.0,110450.0,0.30717609]
[1759076139882,9.08157362,110460.0,110450.0,0.30504609]
[1759076140078,9.06736609,110460.0,110450.0,0.30504609]
[1759076140280,9.15607756,110460.0,110450.0,0.30504609]
[1759076140924,9.06736609,110460.0,110450.0,0.30504609]
[1759076141449,8.77380609,110460.0,110450.0,0.30504609]
[1759076141631,9.06736609,110460.0,110450.0,0.30504609]
[1759076142786,8.77380609,110460.0,110450.0,0.30504609]
[1759076143001,9.08153363,110460.0,110450.0,0.30717609]
[1759076143205,8.78801363,110460.0,110450.0,0.30717609]
[1759076143855,9.07651363,110460.0,110450.0,0.31030609]
[1759076144105,8.29345949,110460.0,110450.0,0.31030609]
[1759076144304,9.04636173,110460.0,110450.0,0.31030609]
[1759076145342,8.86530072,110460.0,110450.0,0.31030609]
[1759076145547,9.04636173,110460.0,110450.0,0.31030609]
[1759076147948,8.73867419,110460.0,110450.0,0.31030609]
[1759076148160,7.46471094,110460.0,110450.0,0.37721481]
[1759076148386,7.84116206,110460.0,110450.0,0.37721481]
[1759076148518,7.81391169,110460.0,110450.0,0.37721481]
[1759076148744,0.73931112,110460.0,110450.0,0.37721481]
[1759076149165,0.36286,110460.0,110450.0,0.37721481]
[1759076149367,0.36286,110460.0,110450.0,0.37421481]
[1759076149586,0.02286,110460.0,110450.0,0.66761481]
[1759076149796,0.36286,110460.0,110450.0,0.66561481]
[1759076149956,0.36286,110460.0,110450.0,0.67361481]
[1759076150564,0.36286,110460.0,110450.0,0.38021481]
[1759076150808,8.73931112,110460.0,110450.0,0.68457481]
[1759076151067,8.75351669,110460.0,110450.0,0.39121481]
[1759076151273,8.75351669,110460.0,110450.0,0.68457481]
[1759076152096,8.75351669,110460.0,110450.0,0.39121481]
[1759076152621,8.75351669,110460.0,110450.0,0.68453481]
[1759076154595,9.42523781,110460.0,110450.0,0.38808481]
[1759076154791,9.42523781,110460.0,110450.0,0.68136481]
[1759076154966,9.05173669,110460.0,110450.0,0.68136481]
[1759076155178,9.04878669,110460.0,110450.0,0.68136481]
[1759076155585,9.04878669,110460.0,110450.0,0.68457481]
[1759076156078,9.51689928,110460.0,110450.0,0.31904609]
[1759076156284,9.69796029,110460.0,110450.0,0.31904609]
[1759076156648,9.72520734,110460.0,110450.0,0.31904609]
[1759076157087,9.72520734,110460.0,110450.0,0.30804609]
[1759076157304,9.63649587,110460.0,110450.0,0.30004609]
[1759076157495,9.63649587,110460.0,110450.0,0.30804609]
[1759076157496,9.66664777,110460.0,110450.0,0.30804609]
[1759076157850,9.66664777,110460.0,110450.0,0.31404609]
[1759076158210,9.66664777,110460.0,110450.0,0.30604609]
[1759076158627,9.66664777,110460.0,110450.0,0.31104609]
[1759076159248,9.71780113,110460.0,110450.0,0.30504609]
[1759076159454,9.70359556,110460.0,110450.0,0.30904609]
[1759076160876,9.70359556,110460.0,110450.0,0.30004609]
[1759076161116,9.70359556,110460.0,110450.0,0.30204609]
[1759076161315,9.70359556,110460.0,110450.0,0.30404609]
[1759076162140,9.6524422,110460.0,110450.0,0.30404609]
[1759076162487,9.66664981,110460.0,110450.0,0.30404609]
[1759076162685,9.67138716,110460.0,110450.0,0.30404609]
[1759076163550,9.37810716,110460.0,110450.0,0.30404609]
[1759076163756,9.67122716,110460.0,110450.0,0.30404609]
[1759076164276,9.75993863,110460.0,110450.0,0.30404609]
[1759076168296,10.23893882,110460.0,110450.0,0.30404609]
[1759076168505,10.31909121,110460.0,110450.0,0.30404609]
[1759076169051,10.31909121,110460.0,110450.0,0.30204609]
[1759076169229,9.90279986,110460.0,110450.0,0.30204609]
[1759076169384,10.31909121,110460.0,110450.0,0.30204609]
[1759076169618,10.31909121,110460.0,110450.0,0.30004609]
[1759076170491,8.80233785,110460.0,110450.0,0.30004609]
[1759076170688,10.04111984,110460.0,110450.0,0.30004609]
[1759076170942,9.94671984,110460.0,110450.0,0.32338609]
[1759076171146,10.04207984,110460.0,110450.0,0.32338609]
[1759076171578,9.65471984,110460.0,110450.0,0.32338609]
[1759076171753,10.0562888,110460.0,110450.0,0.32338609]
[1759076172502,10.0563288,110460.0,110450.0,0.32338609]
[1759076172703,9.9865788,110460.0,110450.0,0.32338609]
[1759076172900,9.6935788,110460.0,110450.0,0.32338609]
[1759076173342,10.0809788,110460.0,110450.0,0.32338609]
[1759076173546,9.6935788,110460.0,110450.0,0.32338609]
[1759076173978,9.31712768,110460.0,110450.0,0.32338609]
[1759076174194,8.28504627,110460.0,110450.0,0.32840609]
[1759076174415,9.66891851,110460.0,110450.0,0.32840609]
[1759076174833,9.67087851,110460.0,110450.0,0.32840609]
[1759076175024,9.67087851,110460.0,110450.0,0.32539609]
[1759076175238,9.37791851,110460.0,110450.0,0.32539609]
[1759076175442,9.67411851,110460.0,110450.0,0.32539609]
[1759076175616,9.67411851,110460.0,110450.0,0.32338609]
[1759076176260,10.1392811,110460.0,110450.0,0.32338609]
[1759076178240,10.12507214,110460.0,110450.0,0.32338609]
[1759076179332,10.17507214,110460.0,110450.0,0.32338609]
[1759076179572,10.20396349,110460.0,110450.0,0.32338609]
[1759076180859,10.21817238,110460.0,110450.0,0.32338609]
[1759076182259,10.26181964,110460.0,110450.0,0.32338609]
[1759076182460,11.3938502,110460.0,110450.0,0.32338609]
[1759076183084,11.37394066,110460.0,110450.0,0.32338609]
[1759076187003,11.08098066,110460.0,110450.0,0.32338609]
[1759076187185,11.46818066,110460.0,110450.0,0.32338609]
[1759076188015,11.08098066,110460.0,110450.0,0.32338609]
[1759076188231,11.46814066,110460.0,110450.0,0.32338609]
[1759076188838,11.28498919,110460.0,110450.0,0.32338609]
[1759076189076,10.96853147,110460.0,110450.0,0.32338609]
[1759076189307,11.35565147,110460.0,110450.0,0.32542609]
[1759076189522,11.35241147,110460.0,110450.0,0.32837609]
[1759076189728,11.35241147,110460.0,110450.0,0.32542609]
[1759076189931,11.32352012,110460.0,110450.0,0.32542609]
[1759076190134,10.93640012,110460.0,110450.0,0.32542609]
[1759076190336,9.81799626,110460.0,110450.0,0.32837609]
[1759076190558,8.23869541,110460.0,110450.0,0.32837609]
[1759076190761,9.66210737,110460.0,110450.0,0.32837609]
[1759076190972,10.00206737,110460.0,110450.0,0.32837609]
[1759076191183,9.70938737,110460.0,110450.0,0.32837609]
[1759076191394,10.03221927,110460.0,110450.0,0.32837609]
[1759076192314,11.24934899,110460.0,110450.0,0.32338609]
[1759076192511,11.29934899,110460.0,110450.0,0.32338609]
[1759076193337,11.31355787,110460.0,110450.0,0.32338609]
[1759076194298,11.38609648,110460.0,110450.0,0.32338609]
[1759076195456,0.60122931,110450.0,110440.0,0.00021381]
[1759076195708,9.97456127,110450.0,110440.0,0.00330242]
[1759076195912,9.99904127,110450.0,110440.0,0.00534242]
[1759076196112,10.00099127,110450.0,110440.0,0.00239242]
[1759076196491,10.00411127,110450.0,110440.0,0.00239242]
[1759076197066,10.03136642,110450.0,110440.0,0.00035242]
[1759076197326,10.17007789,110450.0,110440.0,0.00235242]
[1759076197704,10.17007789,110450.0,110440.0,0.00435242]
[1759076198670,10.17007789,110450.0,110440.0,0.00035242]
[1759076198869,11.30076985,110450.0,110440.0,0.00035242]
[1759076199074,11.30176985,110450.0,110440.0,0.00035242]
[1759076199253,10.17107789,110450.0,110440.0,0.00035242]
[1759076200109,11.4250212,110450.0,110440.0,0.00035242]
[1759076200734,2.89152097,110440.0,110430.0,0.02319]
[1759076200949,0.2112785,110420.0,110410.0,0.07590609]
[1759076201150,9.63453046,110420.0,110410.0,0.07840848]
[1759076201353,9.65901046,110420.0,110410.0,0.07840848]
[1759076201535,10.02627138,110420.0,110410.0,0.00545239]
[1759076201716,10.08101034,110420.0,110410.0,0.00545239]
[1759076201931,10.08296034,110420.0,110410.0,0.00545239]
[1759076202164,0.60129491,110410.0,110400.0,0.02319]
[1759076202367,0.60129491,110410.0,110390.0,0.0004]
[1759076202368,0.60131132,110400.0,110390.0,0.0004]
[1759076202563,0.60131132,110400.0,110390.0,0.00347559]
[1759076202564,9.97456328,110400.0,110390.0,0.00347559]
[1759076202773,9.70648328,110400.0,110390.0,0.00551559]
[1759076203181,10.02631099,110400.0,110390.0,0.00551559]
[1759076203590,9.73375099,110400.0,110390.0,0.00551559]
[1759076203813,10.02631099,110400.0,110390.0,0.00551559]
[1759076204039,10.04052691,110400.0,110390.0,0.00551559]
[1759076204267,9.74796691,110400.0,110390.0,0.00551559]
[1759076204790,10.04048691,110400.0,110390.0,0.01051559]
[1759076205011,10.12919838,110400.0,110390.0,0.01051559]
[1759076205224,10.13114838,110400.0,110390.0,0.01451559]
[1759076205442,9.83667838,110400.0,110390.0,0.01451559]
[1759076205652,9.53665559,110400.0,110390.0,0.01451559]
[1759076205862,10.01033501,110400.0,110390.0,0.01451559]
[1759076206496,10.01037501,110400.0,110390.0,0.01451559]
[1759076206695,10.01033501,110400.0,110390.0,0.01451559]
[1759076206926,9.84735759,110400.0,110390.0,0.01451559]
[1759076207154,9.55483759,110400.0,110390.0,0.01451559]
[1759076207370,9.84735759,110400.0,110390.0,0.01451559]
[1759076207807,9.87750949,110400.0,110390.0,0.01451559]
[1759076208008,9.58498949,110400.0,110390.0,0.01451559]
[1759076208462,9.87750949,110400.0,110390.0,0.01451559]
[1759076209653,9.58498949,110400.0,110390.0,0.01451559]
[1759076209851,9.87750949,110400.0,110390.0,0.01451559]
[1759076210517,9.96817096,110400.0,110390.0,0.01156559]
[1759076210718,9.97128096,110400.0,110390.0,0.00952559]
[1759076211663,9.95706504,110400.0,110390.0,0.00952559]
[1759076212588,9.57077357,110400.0,110390.0,0.01151559]
[1759076212788,9.95769357,110400.0,110390.0,0.01151559]
[1759076212988,9.95769357,110400.0,110390.0,0.01471559]
[1759076213210,9.95984357,110400.0,110390.0,0.01471559]
[1759076213665,8.44223161,110400.0,110390.0,0.01151559]
[1759076213872,9.86325357,110400.0,110390.0,0.01471559]
[1759076214542,9.87746941,110400.0,110390.0,0.01471559]
[1759076214905,9.87961941,110400.0,110390.0,0.01471559]
[1759076215308,9.58713941,110400.0,110390.0,0.01151559]
[1759076215515,9.87961941,110400.0,110390.0,0.01151559]
[1759076216120,9.40382999,110400.0,110390.0,0.01471559]
[1759076216329,9.69630999,110400.0,110390.0,0.01471559]
[1759076216865,9.40382999,110400.0,110390.0,0.01471559]
[1759076217103,9.66611809,110400.0,110390.0,0.01471559]
[1759076217308,9.28922077,110400.0,110390.0,0.01471559]
[1759076217720,9.66611809,110400.0,110390.0,0.01471559]
[1759076217929,9.65190225,110400.0,110390.0,0.01471559]
[1759076218661,9.27500493,110400.0,110390.0,0.01471559]
[1759076218866,9.45616435,110400.0,110390.0,0.01471559]
[1759076219251,9.45831435,110400.0,110390.0,0.01471559]
[1759076219648,8.70236971,110400.0,110390.0,0.01471559]
[1759076219902,9.45616435,110400.0,110390.0,0.01471559]
[1759076220740,9.51336737,110400.0,110390.0,0.01471559]
[1759076220942,9.47038027,110400.0,110390.0,0.01471559]
[1759076221156,9.47253027,110400.0,110390.0,0.01471559]
[1759076221781,9.47249027,110400.0,110390.0,0.01471559]
[1759076221982,9.18009027,110400.0,110390.0,0.01471559]
[1759076222218,9.47249027,110400.0,110390.0,0.01151559]
[1759076222391,9.47249027,110400.0,110390.0,0.01471559]
[1759076223229,9.47249027,110400.0,110390.0,0.01151559]
[1759076224203,9.27797121,110400.0,110390.0,0.01151559]
[1759076224405,9.28108121,110400.0,110390.0,0.01151559]
[1759076225932,9.28108121,110400.0,110390.0,0.00952559]
[1759076226775,9.28108121,110400.0,110390.0,0.01151559]
[1759076228134,9.28100121,110400.0,110390.0,0.01151559]
[1759076228335,9.36971268,110400.0,110390.0,0.00952559]
[1759076228578,9.74661,110400.0,110390.0,0.00952559]
[1759076228780,9.28100121,110400.0,110390.0,0.00952559]
[1759076229943,9.62100121,110400.0,110390.0,0.00952559]
[1759076230150,9.60678529,110400.0,110390.0,0.00952559]
[1759076232774,9.62100063,110400.0,110390.0,0.00952559]
[1759076234196,9.32868063,110400.0,110390.0,0.00952559]
[1759076234415,9.62092063,110400.0,110390.0,0.01151559]
[1759076235593,9.62092063,110400.0,110390.0,0.00952559]
[1759076235980,9.61777063,110400.0,110390.0,0.01151559]
[1759076236430,9.6697703,110400.0,110390.0,0.01151559]
[1759076236633,9.62087063,110400.0,110390.0,0.01151559]
[1759076237188,9.62087063,110400.0,110390.0,0.00952559]
[1759076238667,9.32342063,110400.0,110390.0,0.01151559]
[1759076238840,9.60136529,110400.0,110390.0,0.01451559]
[1759076240803,9.30920529,110400.0,110390.0,0.01451559]
[1759076241150,9.60136529,110400.0,110390.0,0.01451559]
[1759076241746,9.61558052,110400.0,110390.0,0.01451559]
[1759076241953,9.1422611,110400.0,110390.0,0.01451559]
[1759076242157,9.4343811,110400.0,110390.0,0.01451559]
[1759076242356,9.61554052,110400.0,110390.0,0.01451559]
[1759076244374,9.23873284,110400.0,110390.0,0.01451559]
[1759076245615,8.94661284,110400.0,110390.0,0.01451559]
[1759076245812,9.23869284,110400.0,110390.0,0.01451559]
[1759076246661,9.24067284,110400.0,110390.0,0.01451559]
[1759076246847,9.24067284,110400.0,110390.0,0.01151559]
[1759076247076,9.24392284,110400.0,110390.0,0.01151559]
[1759076247815,9.60669457,110400.0,110390.0,0.01151559]
[1759076248838,9.60669457,110400.0,110390.0,0.00952559]
[1759076249867,9.60669457,110400.0,110390.0,0.01159559]
[1759076251136,9.62090946,110400.0,110390.0,0.01159559]
[1759076251943,8.86368554,110400.0,110390.0,0.01159559]
[1759076252145,8.9466125,110400.0,110390.0,0.01461559]
[1759076252278,9.2385725,110400.0,110390.0,0.01461559]
[1759076253294,9.61753946,110400.0,110390.0,0.01159559]
[1759076254426,9.62078946,110400.0,110390.0,0.00952559]
[1759076255391,9.70950093,110400.0,110390.0,0.00952559]
[1759076255595,9.62078946,110400.0,110390.0,0.00952559]
[1759076257229,9.32882946,110400.0,110390.0,0.00952559]
[1759076257561,9.62074946,110400.0,110390.0,0.00952559]
[1759076257913,9.60653457,110400.0,110390.0,0.00952559]
[1759076261279,9.62074943,110400.0,110390.0,0.00952559]
[1759076262332,8.86677551,110400.0,110390.0,0.00952559]
[1759076262553,9.62074943,110400.0,110390.0,0.00952559]
[1759076264872,9.65090133,110400.0,110390.0,0.00952559]
[1759076265075,9.44778372,110400.0,110390.0,0.00952559]
[1759076265955,9.45252374,110400.0,110390.0,0.00952559]
[1759076266132,9.54123521,110400.0,110390.0,0.00952559]
[1759076266710,9.45252374,110400.0,110390.0,0.00952559]
[1759076267385,9.16060374,110400.0,110390.0,0.00952559]
[1759076267845,9.43818888,110400.0,110390.0,0.00952559]
[1759076268646,9.14638888,110400.0,110390.0,0.00952559]
[1759076268845,9.90965584,110400.0,110390.0,0.00952559]
[1759076269065,9.14638888,110400.0,110390.0,0.00952559]
[1759076269268,9.53262888,110400.0,110390.0,0.00952559]
[1759076270483,9.58262888,110400.0,110390.0,0.00952559]
[1759076270918,9.59684485,110400.0,110390.0,0.00952559]
[1759076271708,9.19638888,110400.0,110390.0,0.00952559]
[1759076271932,9.58262888,110400.0,110390.0,0.00952559]
[1759076272298,9.44546449,110400.0,110390.0,0.00952559]
[1759076272704,8.78202438,110400.0,110390.0,0.00952559]
[1759076273144,9.16822438,110400.0,110390.0,0.00952559]
[1759076273360,9.07378438,110400.0,110390.0,0.00952559]
[1759076273555,8.78202438,110400.0,110390.0,0.00952559]
[1759076273906,9.16822438,110400.0,110390.0,0.00952559]
[1759076274731,8.78202438,110400.0,110390.0,0.00952559]
[1759076274867,9.16822438,110400.0,110390.0,0.00952559]
[1759076275480,8.78202438,110400.0,110390.0,0.00952559]
[1759076276097,8.86854597,110400.0,110390.0,0.00952559]
[1759076276357,9.16822438,110400.0,110390.0,0.00952559]
[1759076277168,8.9819043,110400.0,110390.0,0.00952559]
[1759076278946,8.9818643,110400.0,110390.0,0.00952559]
[1759076280163,7.84173038,110400.0,110390.0,0.00952559]
[1759076280362,8.9818643,110400.0,110390.0,0.00952559]
[1759076281741,8.99608053,110400.0,110390.0,0.00952559]
[1759076282408,9.084792,110400.0,110390.0,0.00952559]
[1759076285424,9.39680521,110400.0,110390.0,0.00952559]
[1759076286494,9.39680521,110400.0,110390.0,0.00552559]
[1759076286904,9.39880521,110400.0,110390.0,0.00552559]
[1759076287564,9.39880521,110400.0,110390.0,0.00052559]
[1759076288181,9.40180521,110400.0,110390.0,0.00052559]
[1759076288391,8.6007043,110400.0,110390.0,0.00052559]
[1759076288597,8.9867443,110400.0,110390.0,0.00052559]
[1759076291322,9.00096164,110400.0,110390.0,0.00052559]
[1759076291727,8.24698772,110400.0,110390.0,0.00052559]
[1759076291946,9.00096164,110400.0,110390.0,0.00052559]
[1759076292784,9.08967311,110400.0,110390.0,0.00052559]
[1759076294161,9.11341083,110400.0,110390.0,0.00052559]
[1759076294465,8.92662254,110400.0,110390.0,0.00052559]
[1759076295272,0.62506545,110390.0,110380.0,0.02319]
[1759076295613,0.62506545,110390.0,110370.0,0.0104]
[1759076295614,0.57119224,110380.0,110370.0,0.0104]
[1759076295753,8.6136892,110380.0,110370.0,0.0104]
[1759076295956,8.6382292,110380.0,110370.0,0.0104]
[1759076296153,8.3466692,110380.0,110370.0,0.0104]
[1759076296354,8.75162965,110380.0,110370.0,0.0104]
[1759076296760,8.84034112,110380.0,110370.0,0.0104]
[1759076297202,8.7789042,110380.0,110370.0,0.0104]
[1759076297762,8.7789042,110380.0,110370.0,0.0124]
[1759076298723,8.76468498,110380.0,110370.0,0.0154]
[1759076299196,8.76468498,110380.0,110370.0,0.0104]
[1759076299583,8.76464498,110380.0,110370.0,0.0104]
[1759076300434,8.37868498,110380.0,110370.0,0.0104]
[1759076300701,8.71464498,110380.0,110370.0,0.0104]
[1759076300904,8.80335645,110380.0,110370.0,0.0104]
[1759076301107,8.71464498,110380.0,110370.0,0.0104]
[1759076301745,8.72886413,110380.0,110370.0,0.0104]
[1759076303838,8.63442413,110380.0,110370.0,0.0104]
[1759076304036,8.34290413,110380.0,110370.0,0.0104]
[1759076304269,9.10678967,110380.0,110370.0,0.0104]
[1759076305109,9.19550114,110380.0,110370.0,0.0104]
[1759076308249,9.18128199,110380.0,110370.0,0.0104]
[1759076310994,9.19550118,110380.0,110370.0,0.0104]
[1759076311794,8.80954118,110380.0,110370.0,0.0125]
[1759076312014,8.25172765,110380.0,110370.0,0.0156]
[1759076312219,8.72435989,110380.0,110370.0,0.0156]
[1759076312421,8.15728765,110380.0,110370.0,0.0156]
[1759076312626,8.44872765,110380.0,110370.0,0.0156]
[1759076313255,8.62991989,110380.0,110370.0,0.0156]
[1759076313697,8.33847989,110380.0,110370.0,0.0156]
[1759076313918,8.62991989,110380.0,110370.0,0.08250872]
[1759076314860,8.62491989,110380.0,110370.0,0.08250872]
[1759076315137,8.62491989,110380.0,110370.0,0.08450872]
[1759076315386,8.62491989,110380.0,110370.0,0.08750872]
[1759076315569,8.33347989,110380.0,110370.0,0.08750872]
[1759076315772,8.15228765,110380.0,110370.0,0.08750872]
[1759076315977,8.44368765,110380.0,110370.0,0.08750872]
[1759076316156,8.62487989,110380.0,110370.0,0.08750872]
[1759076318321,7.39768801,110380.0,110370.0,0.08750872]
[1759076318547,7.04846882,110380.0,110370.0,0.08750872]
[1759076318761,7.71712864,110380.0,110370.0,0.08750872]
[1759076318940,7.67982882,110380.0,110370.0,0.08750872]
[1759076319144,8.05712864,110380.0,110370.0,0.08750872]
[1759076320337,8.43442846,110380.0,110370.0,0.08750872]
[1759076320546,8.43442846,110380.0,110370.0,0.08685832]
[1759076320968,8.6176907,110380.0,110370.0,0.08685832]
[1759076321209,8.43649846,110380.0,110370.0,0.08685832]
[1759076321350,8.43442846,110380.0,110370.0,0.08685832]
[1759076321576,8.44864564,110380.0,110370.0,0.08685832]
[1759076323023,8.62983788,110380.0,110370.0,0.08685832]
[1759076323291,8.63512788,110380.0,110370.0,0.08165832]
[1759076323525,9.0124277,110380.0,110370.0,0.08165832]
[1759076326236,9.05470131,110380.0,110370.0,0.08165832]
[1759076326901,9.05470131,110380.0,110370.0,0.0147496]
[1759076327117,9.0425796,110380.0,110370.0,0.0147496]
[1759076328310,9.02836242,110380.0,110370.0,0.0147496]
[1759076329370,9.02824242,110380.0,110370.0,0.0147496]
[1759076330978,8.73700242,110380.0,110370.0,0.0147496]
[1759076331210,9.04246069,110380.0,110370.0,0.0147496]
[1759076331464,8.75122069,110380.0,110370.0,0.0147496]
[1759076331980,9.04242069,110380.0,110370.0,0.0147496]
[1759076332582,8.75122069,110380.0,110370.0,0.0147496]
[1759076332723,9.04242069,110380.0,110370.0,0.0147496]
[1759076334022,9.04242069,110380.0,110370.0,0.0166996]
[1759076334238,7.58387933,110380.0,110370.0,0.0198096]
[1759076334493,8.15728673,110380.0,110370.0,0.08671832]
[1759076334707,8.44848673,110380.0,110370.0,0.08671832]
[1759076334912,8.15728673,110380.0,110370.0,0.08671832]
[1759076335126,8.44848673,110380.0,110370.0,0.08671832]
[1759076336955,8.62967897,110380.0,110370.0,0.08671832]
[1759076339120,8.33847897,110380.0,110370.0,0.08671832]
[1759076339322,8.62959897,110380.0,110370.0,0.08671832]
[1759076339962,7.87499933,110380.0,110370.0,0.08671832]
[1759076340282,8.63154897,110380.0,110370.0,0.08671832]
[1759076340927,8.6203007,110380.0,110370.0,0.08360832]
[1759076342723,8.6173307,110380.0,110370.0,0.08360832]
[1759076342928,8.43414846,110380.0,110370.0,0.08671832]
[1759076343138,7.80306846,110380.0,110370.0,0.10483918]
[1759076343383,8.05684864,110380.0,110370.0,0.15483918]
[1759076343605,7.76576864,110380.0,110370.0,0.15483918]
[1759076343811,7.40268577,110380.0,110370.0,0.15483918]
[1759076344013,8.07106559,110380.0,110370.0,0.15483918]
[1759076344213,7.77998559,110380.0,110370.0,0.13671832]
[1759076344430,8.07106559,110380.0,110370.0,0.13671832]
[1759076344653,7.77998559,110380.0,110370.0,0.15483918]
[1759076344862,8.07106559,110380.0,110370.0,0.13671832]
[1759076345060,7.77998559,110380.0,110370.0,0.13671832]
[1759076345264,8.07106559,110380.0,110370.0,0.13671832]
[1759076347078,8.44836541,110380.0,110370.0,0.13671832]
[1759076347835,8.43414846,110380.0,110370.0,0.13671832]
[1759076349610,8.43406846,110380.0,110370.0,0.13671832]
[1759076350933,7.67946882,110380.0,110370.0,0.13671832]
[1759076351125,8.43406846,110380.0,110370.0,0.13671832]
[1759076351381,7.69368561,110380.0,110370.0,0.13671832]
[1759076351606,8.44828525,110380.0,110370.0,0.13671832]
[1759076352262,8.44824525,110380.0,110370.0,0.13671832]
[1759076353246,8.45028525,110380.0,110370.0,0.13671832]
[1759076353496,8.45028525,110380.0,110370.0,0.13360832]
[1759076353684,8.45325525,110380.0,110370.0,0.13165832]
[1759076354051,8.63444749,110380.0,110370.0,0.13165832]
[1759076354269,8.63444749,110380.0,110370.0,0.0147496]
[1759076354706,8.63444749,110380.0,110370.0,0.08165832]
[1759076354912,9.01174731,110380.0,110370.0,0.08165832]
[1759076355324,8.63444749,110380.0,110370.0,0.08165832]
[1759076355832,8.63444749,110380.0,110370.0,0.0147496]
[1759076356028,8.63444749,110380.0,110370.0,0.08165832]
[1759076356230,8.63440749,110380.0,110370.0,0.08165832]
[1759076356440,8.34348749,110380.0,110370.0,0.08165832]
[1759076356598,8.63440749,110380.0,110370.0,0.08165832]
[1759076358010,8.6201907,110380.0,110370.0,0.08165832]
[1759076360129,8.3292707,110380.0,110370.0,0.08165832]
[1759076360306,8.6201507,110380.0,110370.0,0.0147496]
[1759076360513,8.6201507,110380.0,110370.0,0.08165832]
[1759076360680,8.6201507,110380.0,110370.0,0.0147496]
[1759076360887,8.6201507,110380.0,110370.0,0.08165832]
[1759076361148,8.63436795,110380.0,110370.0,0.08165832]
[1759076361352,7.58888831,110380.0,110370.0,0.08165832]
[1759076361557,8.16229571,110380.0,110370.0,0.08165832]
[1759076361762,8.15728571,110380.0,110370.0,0.08682832]
[1759076361973,8.07082589,110380.0,110370.0,0.15494918]
[1759076362420,8.07082589,110380.0,110370.0,0.13682832]
[1759076362613,8.44812571,110380.0,110370.0,0.13682832]
[1759076362902,8.15728571,110380.0,110370.0,0.15494918]
[1759076363060,8.15728571,110380.0,110370.0,0.13682832]
[1759076363061,7.40268607,110380.0,110370.0,0.13682832]
[1759076363266,8.44812571,110380.0,110370.0,0.13682832]
[1759076366329,8.07062956,110380.0,110370.0,0.13682832]
[1759076367888,8.05641231,110380.0,110370.0,0.13682832]
[1759076368095,7.85369324,110380.0,110370.0,0.13682832]
[1759076368705,7.85369324,110380.0,110370.0,0.43682832]
[1759076368911,7.85365324,110380.0,110370.0,0.43682832]
[1759076370250,7.56285324,110380.0,110370.0,0.43682832]
[1759076370454,7.85361324,110380.0,110370.0,0.43682832]
[1759076371024,7.49072638,110380.0,110370.0,0.43682832]
[1759076371337,7.57706987,110380.0,110370.0,0.43682832]
[1759076371544,7.86782987,110380.0,110370.0,0.43682832]
[1759076373215,7.19522515,110380.0,110370.0,0.43682832]
[1759076374623,7.19522515,110380.0,110370.0,0.81393181]
[1759076374840,0.06603118,110380.0,110370.0,1.10465181]
[1759076375431,0.56603118,110380.0,110370.0,1.10465181]
[1759076375776,8.56603118,110380.0,110370.0,1.10465181]
[1759076375979,0.06603118,110380.0,110370.0,1.10465181]
[1759076376622,0.06603118,110380.0,110370.0,1.4817553]
[1759076377257,0.03875663,110380.0,110370.0,1.4767553]
[1759076377705,0.03875663,110380.0,110370.0,1.12165181]
[1759076377950,0.02454,110380.0,110370.0,1.12165181]
[1759076378066,0.02454,110380.0,110370.0,1.4987553]
[1759076378268,0.02454,110380.0,110370.0,1.71011586]
[1759076378492,0.02454,110380.0,110370.0,2.08791586]
[1759076378751,0.02454,110380.0,110370.0,2.13791586]
[1759076379398,0.02454,110380.0,110370.0,1.2881872]
[1759076379744,0.02454,110380.0,110370.0,2.0510272]